{"text_format":"1","workbook":"xlsx","n_sheets":2,"sheets":["Ženy","Muži"],"not_rendered":{"charts":0,"images":0,"macros":1,"external_links":0,"defined_names":0,"comments":0,"pivot_tables":0},"unopened":[],"bounds":{"document_bytes":16777216,"sheet_cells":100000,"rows_first":2000,"rows_last":500,"rows_between":2000,"halvings":0,"cell_chars":16384,"cell_head_chars":4096},"cells_cut":0,"cells_raw":0,"read":"whole","date_system":"1900"}

{"sheet":"Ženy","index":0,"n_rows":205,"n_cols":57,"rows_kept":205,"cut":false,"hidden":false,"merged":[]}
[]
[]
[]
[]
[null,"St. č.","Jméno","Stát","Čas 1. kolo","Čas 2. kolo",null,null,null,null,null,null,null,null,null,null,null,null,null,null,null,null,null,null,null,null,"Pořadí","St. č.","Jméno","Stát","Výsledky 1. kolo",null,null,null,null,null,null,null,null,null,null,null,null,null,null,null,null,null,null,null,null,null,"Pořadí","St. č.","Jméno","Stát","Celkové výsledky"]
[null,1,"Venier Stephanie","AUT","00:01:23.900","00:01:21.400",null,null,null,null,null,null,null,null,null,null,null,null,null,null,null,null,null,null,null,null,"1.",3,"Ledecká Ester","CZE","00:01:23.100",null,null,null,null,null,null,null,null,null,null,null,null,null,null,null,null,null,null,null,null,null,"1.",3,"Ledecká Ester","CZE","00:02:44.200"]
[null,2,"Brignone Federica","ITA","00:01:23.600","00:01:21.800",null,null,null,null,null,null,null,null,null,null,null,null,null,null,null,null,null,null,null,null,"2.",5,"Macuga Lauren ","USA","00:01:23.300",null,null,null,null,null,null,null,null,null,null,null,null,null,null,null,null,null,null,null,null,null,"2.",5,"Macuga Lauren ","USA","00:02:44.600"]
[null,3,"Ledecká Ester","CZE","00:01:23.100","00:01:21.100",null,null,null,null,null,null,null,null,null,null,null,null,null,null,null,null,null,null,null,null,"3.",4,"Suter Corinne","SUI","00:01:23.400",null,null,null,null,null,null,null,null,null,null,null,null,null,null,null,null,null,null,null,null,null,"3.",4,"Suter Corinne","SUI","00:02:44.900"]
[null,4,"Suter Corinne","SUI","00:01:23.400","00:01:21.500",null,null,null,null,null,null,null,null,null,null,null,null,null,null,null,null,null,null,null,null,"4.",2,"Brignone Federica","ITA","00:01:23.600",null,null,null,null,null,null,null,null,null,null,null,null,null,null,null,null,null,null,null,null,null,"4.",1,"Venier Stephanie","AUT","00:02:45.300"]
[null,5,"Macuga Lauren ","USA","00:01:23.300","00:01:21.300",null,null,null,null,null,null,null,null,null,null,null,null,null,null,null,null,null,null,null,null,"5.",1,"Venier Stephanie","AUT","00:01:23.900",null,null,null,null,null,null,null,null,null,null,null,null,null,null,null,null,null,null,null,null,null,"5.",2,"Brignone Federica","ITA","00:02:45.400"]
[]
[]
[]
[]
[]
[]
[]
[]
[]
[]
[]
[]
[]
[]
[]
[]
[]
[]
[]
[]
[]
[]
[]
[]
[]
[]
[]
[]
[]
[]
[]
[]
[]
[]
[]
[]
[]
[]
[]
[]
[]
[]
[]
[]
[]
[]
[]
[]
[]
[]
[]
[]
[]
[]
[]
[]
[]
[]
[]
[]
[]
[]
[]
[]
[]
[]
[]
[]
[]
[]
[]
[]
[]
[]
[]
[]
[]
[]
[]
[]
[]
[]
[]
[]
[]
[]
[]
[]
[]
[null,"St. č.","Jméno","Stát","Čas 1. kolo",null,"prázdná","číslo"]
[null,1,"Venier Stephanie","AUT",{"$f":"IF(G101,\"---\",IF(H101,E6,\"DNF\"))","v":"00:01:23.900"},null,{"$f":"ISBLANK(E6)","v":false},{"$f":"ISNUMBER(E6)","v":true}]
[null,2,"Brignone Federica","ITA",{"$f":"IF(G102,\"---\",IF(H102,E7,\"DNF\"))","v":"00:01:23.600"},null,{"$f":"ISBLANK(E7)","v":false},{"$f":"ISNUMBER(E7)","v":true}]
[null,3,"Ledecká Ester","CZE","00:01:23.100",null,false,true]
[null,4,"Suter Corinne","SUI","00:01:23.400",null,false,true]
[null,5,"Macuga Lauren ","USA","00:01:23.300",null,false,true]
[]
[]
[]
[]
[]
[]
[]
[]
[]
[]
[]
[]
[]
[]
[]
[]
[]
[]
[]
[]
[]
[]
[]
[]
[]
[]
[]
[]
[]
[]
[]
[]
[]
[]
[]
[]
[]
[]
[]
[]
[]
[]
[]
[]
[]
[]
[]
[]
[]
[]
[]
[]
[]
[]
[]
[]
[]
[]
[]
[]
[]
[]
[]
[]
[]
[]
[]
[]
[]
[]
[]
[]
[]
[]
[]
[]
[]
[]
[]
[]
[]
[]
[]
[]
[]
[]
[]
[]
[]
[]
[]
[]
[]
[]
[null,"St. č.","Jméno","Stát","Celkový čas",null,"prázdná","chyba"]
[null,1,"Venier Stephanie","AUT",{"$f":"IF(G201,\"---\",IF(H201,\"DNF\",E6+F6))","v":"00:02:45.300"},null,{"$f":"ISBLANK(F6)","v":false},{"$f":"ISERROR(E6+F6)","v":false}]
[null,2,"Brignone Federica","ITA",{"$f":"IF(G202,\"---\",IF(H202,\"DNF\",E7+F7))","v":"00:02:45.400"},null,{"$f":"ISBLANK(F7)","v":false},{"$f":"ISERROR(E7+F7)","v":false}]
[null,3,"Ledecká Ester","CZE","00:02:44.200",null,false,false]
[null,4,"Suter Corinne","SUI","00:02:44.900",null,false,false]
[null,5,"Macuga Lauren ","USA","00:02:44.600",null,false,false]

{"sheet":"Muži","index":1,"n_rows":0,"n_cols":0,"rows_kept":0,"cut":false,"hidden":false,"merged":[]}